bitfinex-derivatives/quotes_BTCF0:USTF0_20250830
["timestamp","ask_amount","ask_price","bid_price","bid_amount"]
[1756513414477,0.26941603,108460.0,108450.0,0.77939742]
[1756513414776,1.11205603,108460.0,108450.0,0.77939742]
[1756513418379,0.92259011,108460.0,108450.0,0.77939742]
[1756513418576,1.02259011,108460.0,108450.0,0.77939742]
[1756513418770,0.13003011,108460.0,108450.0,1.13419484]
[1756513420374,0.176863,108460.0,108450.0,1.13419484]
[1756513424979,0.202253,108460.0,108450.0,1.13419484]
[1756513426977,0.176863,108460.0,108450.0,1.13419484]
[1756513445196,0.176863,108460.0,108450.0,1.47639014]
[1756513445400,0.176863,108460.0,108450.0,1.55926817]
[1756513446297,0.176863,108460.0,108450.0,1.46707287]
[1756513446797,0.176863,108460.0,108450.0,2.30935287]
[1756513447000,0.176863,108460.0,108450.0,1.46707287]
[1756513447199,0.202573,108460.0,108450.0,2.05935287]
[1756513447401,0.226643,108460.0,108450.0,0.77939742]
[1756513449302,0.226643,108460.0,108450.0,0.86227545]
[1756513454003,0.226643,108460.0,108450.0,1.21707287]
[1756513454704,0.200933,108460.0,108450.0,1.21707287]
[1756513454904,0.176863,108460.0,108450.0,1.21707287]
[1756513457508,0.202573,108460.0,108450.0,1.21707287]
[1756513457903,0.176863,108460.0,108450.0,1.21707287]
[1756513461007,0.176863,108460.0,108450.0,1.13419484]
[1756513464614,0.176863,108460.0,108450.0,1.97627484]
[1756513465206,0.200933,108460.0,108450.0,1.13419484]
[1756513466012,0.176863,108460.0,108450.0,1.13419484]
[1756513469606,0.176863,108460.0,108450.0,1.22639044]
[1756513470314,0.176863,108460.0,108450.0,1.47639044]
[1756513472712,0.04683289,108460.0,108450.0,1.47639044]
[1756513472912,0.14683289,108460.0,108450.0,1.47639044]
[1756513473410,0.10918289,108460.0,108450.0,1.83118786]
[1756513473608,0.00918289,108460.0,108450.0,1.83118786]
[1756513473816,0.00918289,108460.0,108450.0,1.47639044]
[1756513474615,0.00918289,108460.0,108450.0,2.31831044]
[1756513474915,0.00918289,108460.0,108450.0,1.47639044]
[1756513475212,0.00918289,108460.0,108450.0,2.31831044]
[1756513477211,0.00918289,108460.0,108450.0,2.40118847]
[1756513480516,0.00918289,108460.0,108450.0,2.75598589]
[1756513480915,0.00918289,108460.0,108450.0,2.40118847]
[1756513481715,0.00918289,108460.0,108450.0,2.31831044]
[1756513482313,0.00918289,108460.0,108450.0,2.31823044]
[1756513483609,1.48507575,108490.0,108460.0,0.03529]
[1756513483815,0.12325,108470.0,108460.0,0.77484742]
[1756513484210,0.41450164,108520.0,108480.0,0.05925]
[1756513484211,0.3608,108510.0,108480.0,0.05925]
[1756513484416,0.3608,108510.0,108500.0,0.42005]
[1756513484417,0.02325,108510.0,108500.0,0.42005]
[1756513484611,0.02325,108510.0,108500.0,0.05925]
[1756513484612,0.12325,108510.0,108500.0,0.05925]
[1756513485018,0.12325,108510.0,108500.0,0.76884484]
[1756513485616,0.20762625,108510.0,108500.0,0.76884484]
[1756513485816,0.56242367,108510.0,108500.0,0.41404742]
[1756513486016,0.56242367,108510.0,108500.0,0.76884484]
[1756513486714,0.56642367,108510.0,108500.0,0.76884484]
[1756513486919,0.56642367,108510.0,108500.0,0.41404742]
[1756513487417,0.21162625,108510.0,108500.0,0.41372386]
[1756513487712,0.28496886,108510.0,108500.0,0.41372386]
[1756513488218,0.28496886,108510.0,108500.0,0.05925]
[1756513489118,0.06059,108500.0,108490.0,0.02396]
[1756513489314,0.06059,108470.0,108460.0,0.88836]
[1756513489712,0.06059,108470.0,108460.0,0.38476]
[1756513490408,0.06059,108470.0,108460.0,0.73923386]
[1756513491019,0.06059,108470.0,108460.0,0.74023386]
[1756513491222,0.06059,108470.0,108460.0,0.76808386]
[1756513491916,0.42139,108470.0,108460.0,0.05281]
[1756513492715,0.42139,108470.0,108460.0,0.40728386]
[1756513492916,0.03734,108480.0,108470.0,0.02785]
[1756513493125,0.06059,108480.0,108470.0,0.76708386]
[1756513500927,0.06059,108480.0,108470.0,0.41261]
[1756513501129,0.42139,108480.0,108470.0,0.40628386]
[1756513501337,0.67139,108480.0,108470.0,0.05181]
[1756513501536,0.67139,108480.0,108470.0,0.40628386]
[1756513509945,1.15207,108480.0,108470.0,0.40628386]
[1756513510944,1.51287,108480.0,108470.0,0.40628386]
[1756513511746,1.15207,108480.0,108470.0,0.76708386]
[1756513515243,1.15207,108480.0,108470.0,0.3608]
[1756513515444,0.06052,108470.0,108460.0,0.05722]
[1756513515748,0.06052,108450.0,108440.0,0.28968856]
[1756513515940,0.06052,108450.0,108440.0,0.64877242]
[1756513516141,0.42132,108450.0,108440.0,0.29429856]
[1756513516336,0.42132,108450.0,108440.0,0.02549856]
[1756513516646,1.02579386,108450.0,108440.0,0.02549856]
[1756513516847,0.67132,108450.0,108440.0,0.02549856]
[1756513517042,1.53868,108450.0,108440.0,0.37997242]
[1756513517244,1.53868,108450.0,108440.0,0.38397242]
[1756513517849,1.53868,108450.0,108440.0,0.37997242]
[1756513518444,1.53868,108450.0,108440.0,0.38197242]
[1756513518647,1.6108389,108450.0,108440.0,0.38197242]
[1756513518845,0.1326789,108450.0,108440.0,0.63197242]
[1756513519047,0.0721589,108450.0,108440.0,1.34724628]
[1756513519248,0.90346,108460.0,108440.0,1.34524628]
[1756513519450,0.90346,108460.0,108450.0,0.70894772]
[1756513519451,1.028,108460.0,108450.0,0.70894772]
[1756513520757,0.16052,108460.0,108450.0,0.70894772]
[1756513520946,1.02764,108460.0,108450.0,0.70894772]
[1756513521347,0.16052,108460.0,108450.0,0.70894772]
[1756513521550,0.9856,108460.0,108450.0,0.70894772]
[1756513522652,1.3464,108460.0,108450.0,0.70894772]
[1756513522849,1.3474,108460.0,108450.0,0.35447386]
[1756513524459,0.52232,108460.0,108450.0,0.35447386]
[1756513524847,1.38812,108460.0,108450.0,0.35447386]
[1756513526654,1.21176414,108460.0,108450.0,0.37067386]
[1756513526857,1.23630414,108460.0,108450.0,0.40533386]
[1756513527054,1.33630414,108460.0,108450.0,0.40533386]
[1756513528661,1.37228414,108460.0,108450.0,0.40533386]
[1756513530160,0.50648414,108460.0,108450.0,0.40533386]
[1756513530362,1.37064414,108460.0,108450.0,0.40533386]
[1756513531058,1.37064414,108460.0,108450.0,0.75980772]
[1756513531759,1.02556,108460.0,108450.0,1.12060772]
[1756513532153,1.02556,108460.0,108450.0,1.12521772]
[1756513532860,1.02556,108460.0,108450.0,0.40994386]
[1756513533359,1.38636,108460.0,108450.0,0.35908386]
[1756513535262,1.38636,108460.0,108450.0,0.38293386]
[1756513536562,1.38636,108460.0,108450.0,0.41830386]
[1756513537052,1.38636,108460.0,108450.0,0.38293386]
[1756513538360,1.38636,108460.0,108450.0,0.35908386]
[1756513540661,0.52232,108460.0,108450.0,0.38293386]
[1756513540863,1.38468,108460.0,108450.0,0.41830386]
[1756513541965,1.38468,108460.0,108450.0,0.38293386]
[1756513545170,1.38356,108460.0,108450.0,0.38293386]
[1756513545768,1.38356,108460.0,108450.0,0.02846]
[1756513546069,1.38356,108460.0,108450.0,0.35908386]
[1756513546967,1.73803386,108460.0,108440.0,0.35447386]
[1756513547271,0.42155,108450.0,108440.0,0.37832386]
[1756513548375,1.28279,108450.0,108440.0,0.37832386]
[1756513548771,0.42155,108450.0,108440.0,0.37832386]
[1756513548970,1.28267,108450.0,108440.0,0.37832386]
[1756513549170,1.28267,108450.0,108440.0,0.40533386]
[1756513549677,0.42155,108450.0,108440.0,0.40533386]
[1756513549873,1.28259,108450.0,108440.0,0.40533386]
[1756513550773,0.42155,108450.0,108440.0,0.40533386]
[1756513550976,0.88472,108450.0,108440.0,1.01613386]
[1756513551175,0.92155,108450.0,108440.0,1.01613386]
[1756513551375,0.99471193,108450.0,108440.0,1.01613386]
[1756513552181,0.13391193,108450.0,108440.0,1.01613386]
[1756513559185,0.13391193,108450.0,108440.0,0.76613386]
[1756513560887,1.16720587,108460.0,108440.0,0.73912386]
[1756513561186,1.29225587,108460.0,108450.0,0.41715386]
[1756513562785,1.29325587,108460.0,108450.0,0.41715386]
[1756513562986,1.33259587,108460.0,108450.0,0.41715386]
[1756513563581,1.35729792,108460.0,108450.0,0.35447386]
[1756513563780,1.60729792,108460.0,108450.0,0.35447386]
[1756513563982,1.60729792,108460.0,108450.0,0.37789386]
[1756513564182,1.60729792,108460.0,108450.0,0.41715386]
[1756513564788,0.80089205,108460.0,108450.0,0.41715386]
[1756513564992,1.66037205,108460.0,108450.0,0.41715386]
[1756513565682,1.63567,108460.0,108450.0,0.41715386]
[1756513567591,1.66036582,108460.0,108450.0,0.41715386]
[1756513573296,1.63567,108460.0,108450.0,0.41715386]
[1756513574092,1.63567,108460.0,108450.0,0.02342]
[1756513574296,1.63567,108460.0,108450.0,0.41715386]
[1756513574791,1.63567,108460.0,108450.0,0.37789386]
[1756513577903,0.77619,108460.0,108450.0,0.41715386]
[1756513578106,1.63411,108460.0,108450.0,0.41715386]
[1756513581197,1.63327,108460.0,108450.0,0.41715386]
[1756513581396,0.77619,108460.0,108450.0,0.41715386]
[1756513581603,1.63299,108460.0,108450.0,0.41715386]
[1756513584806,1.63299,108460.0,108450.0,0.37789386]
[1756513585005,0.03934,108450.0,108430.0,0.10382747]
[1756513585205,1.28147,108440.0,108430.0,0.48172133]
[1756513585410,1.28147,108440.0,108430.0,0.39872381]
[1756513586406,1.28147,108440.0,108430.0,0.39972381]
[1756513586604,1.63594386,108440.0,108430.0,0.02182995]
[1756513587000,1.63594386,108440.0,108430.0,0.001]
[1756513587207,1.88594386,108440.0,108430.0,0.001]
[1756513587504,1.98594386,108440.0,108430.0,0.001]
[1756513587712,1.94660386,108440.0,108410.0,0.40427937]
[1756513587909,0.38585,108420.0,108410.0,0.42769937]
[1756513588114,1.28111,108420.0,108410.0,0.42769937]
[1756513588317,1.28111,108420.0,108410.0,0.07322551]
[1756513588615,1.28111,108420.0,108410.0,0.42769937]
[1756513589004,1.28111,108420.0,108410.0,0.43169937]
[1756513589208,1.35615111,108420.0,108410.0,0.43169937]
[1756513589917,1.35615111,108420.0,108410.0,0.43369937]
[1756513591217,1.35615111,108420.0,108410.0,0.40416937]
[1756513591815,1.35575111,108420.0,108410.0,0.43671937]
[1756513592011,1.17419902,108420.0,108410.0,0.43671937]
[1756513592217,1.03994453,108420.0,108410.0,0.43671937]
[1756513592516,0.18442453,108420.0,108410.0,0.43671937]
[1756513592704,1.03990453,108420.0,108410.0,0.43671937]
[1756513593419,0.18442453,108420.0,108410.0,0.43671937]
[1756513593620,1.03978453,108420.0,108410.0,0.79751937]
[1756513596616,1.03978453,108420.0,108410.0,0.44304551]
[1756513596814,1.03978453,108420.0,108410.0,0.79751937]
[1756513597118,1.03978453,108420.0,108410.0,0.44304551]
[1756513597317,1.03978453,108420.0,108410.0,0.79751937]
[1756513597914,1.03918453,108420.0,108410.0,0.79751937]
[1756513601719,1.03918453,108420.0,108410.0,0.44304551]
[1756513601920,1.03918453,108420.0,108410.0,0.79751937]
[1756513603319,1.03918453,108420.0,108410.0,0.76496937]
[1756513603722,0.18442453,108420.0,108410.0,0.79751937]
[1756513603916,1.03802453,108420.0,108410.0,0.79751937]
[1756513607220,1.03802453,108420.0,108410.0,0.42277]
[1756513607414,1.39249839,108420.0,108410.0,0.39022]
[1756513607609,1.75329839,108420.0,108410.0,0.006]
[1756513608619,2.00329839,108420.0,108410.0,0.006]
[1756513611523,0.06203,108400.0,108390.0,0.77499386]
[1756513611716,0.91523,108400.0,108390.0,0.77499386]
[1756513612324,0.06203,108400.0,108390.0,0.77499386]
[1756513612515,0.06203,108400.0,108390.0,0.42052]
[1756513612516,0.91515,108400.0,108390.0,0.42052]
[1756513612716,0.91515,108400.0,108390.0,0.77899386]
[1756513613422,0.91515,108400.0,108390.0,0.78099386]
[1756513615322,0.91455,108400.0,108390.0,0.78099386]
[1756513617424,0.91455,108400.0,108390.0,0.42652]
[1756513617622,0.91455,108400.0,108390.0,0.78099386]
[1756513619333,0.06203,108400.0,108390.0,0.78099386]
[1756513619519,0.91411,108400.0,108390.0,0.78099386]
[1756513620730,0.06203,108400.0,108390.0,0.78099386]
[1756513620923,0.91391,108400.0,108390.0,0.78099386]
[1756513627130,0.91283,108400.0,108390.0,0.78099386]
[1756513627327,0.8761,108400.0,108390.0,1.13670924]
[1756513627528,0.91367,108400.0,108390.0,1.13670924]
[1756513628839,1.26876462,108400.0,108390.0,0.42652]
[1756513629032,1.26876462,108400.0,108390.0,0.03317]
[1756513629033,1.87385924,108400.0,108390.0,0.03317]
[1756513629239,2.23465924,108400.0,108390.0,0.006]
[1756513629534,2.23465924,108400.0,108390.0,0.36109462]
[1756513629739,2.23465924,108400.0,108390.0,0.006]
[1756513629939,2.23465924,108400.0,108390.0,0.36109462]
[1756513630239,2.23565924,108400.0,108390.0,0.37540829]
[1756513630433,2.23665924,108400.0,108390.0,0.37540829]
[1756513631133,1.88156462,108400.0,108390.0,0.02031367]
[1756513631332,1.88168446,108400.0,108390.0,0.02031367]
[1756513632032,1.88168446,108400.0,108380.0,0.74875446]
[1756513632033,1.84411446,108400.0,108380.0,0.74875446]
[1756513632237,0.06482,108390.0,108380.0,0.77494446]
[1756513635133,0.06482,108390.0,108380.0,0.41973]
[1756513635336,0.42003446,108390.0,108380.0,0.05893]
[1756513636035,0.06482,108380.0,108370.0,0.79575571]
[1756513636238,0.91614,108380.0,108370.0,0.79575571]
[1756513636732,0.91614,108380.0,108370.0,0.44054125]
[1756513636926,0.91614,108380.0,108370.0,0.79575571]
[1756513638734,0.91614,108380.0,108370.0,0.79675571]
[1756513639341,0.91714,108380.0,108370.0,0.79675571]
[1756513639549,0.91814,108380.0,108370.0,0.79575571]
[1756513644340,0.91814,108380.0,108370.0,0.44054125]
[1756513644547,0.91814,108380.0,108370.0,0.79575571]
[1756513646251,0.06682,108380.0,108370.0,0.44054125]
[1756513646549,0.91694,108380.0,108370.0,0.79575571]
[1756513649348,0.91694,108380.0,108370.0,0.44054125]
[1756513649549,0.91694,108380.0,108370.0,0.79575571]
[1756513649751,0.91694,108380.0,108370.0,0.44054125]
[1756513649958,1.27215446,108380.0,108370.0,0.02081125]
[1756513650249,1.88295446,108380.0,108370.0,0.04700125]
[1756513650550,1.88295446,108380.0,108370.0,0.02081125]
[1756513651552,1.88295446,108380.0,108370.0,0.04700125]
[1756513652662,1.03283446,108380.0,108370.0,0.04700125]
[1756513652862,1.88207446,108380.0,108370.0,0.04700125]
[1756513653156,1.45445446,108380.0,108370.0,0.04700125]
[1756513653354,1.83559154,108380.0,108370.0,0.40234702]
[1756513653553,1.83559154,108380.0,108370.0,0.43972702]
[1756513654962,1.83559154,108380.0,108370.0,0.40234702]
[1756513655163,1.87225154,108380.0,108370.0,0.40234702]
[1756513656767,1.87165154,108380.0,108370.0,0.40234702]
[1756513656966,1.87165154,108380.0,108370.0,0.43972702]
[1756513658668,1.02301154,108380.0,108370.0,0.43972702]
[1756513658865,1.87161154,108380.0,108370.0,0.43972702]
[1756513659366,1.51602577,108380.0,108370.0,0.43972702]
[1756513659557,0.31232,108380.0,108370.0,0.80052702]
[1756513659762,1.51590577,108380.0,108370.0,0.80052702]
[1756513660063,1.51590577,108380.0,108370.0,0.40780125]
[1756513660266,1.51590577,108380.0,108370.0,0.80052702]
[1756513660465,1.51582577,108380.0,108370.0,0.80052702]
[1756513661775,0.31232,108380.0,108370.0,0.80052702]
[1756513661970,1.51578577,108380.0,108370.0,0.80052702]
[1756513662170,1.51558577,108380.0,108370.0,0.80052702]
[1756513662469,1.51554577,108380.0,108370.0,0.80052702]
[1756513664874,0.06232,108380.0,108370.0,1.40587279]
[1756513665072,0.91001861,108390.0,108380.0,0.06229]
[1756513665271,0.91013861,108390.0,108380.0,1.13378154]
[1756513666272,0.91213861,108390.0,108380.0,1.13378154]
[1756513666672,0.06445861,108390.0,108380.0,1.13378154]
[1756513666872,0.87535861,108390.0,108380.0,1.38378154]
[1756513668773,0.02779861,108390.0,108380.0,1.38378154]
[1756513670770,0.00213861,108390.0,108380.0,1.73912731]
[1756513671170,0.00213861,108390.0,108380.0,1.38378154]
[1756513675778,0.00213861,108390.0,108380.0,1.74458154]
[1756513676380,0.00213861,108390.0,108380.0,2.09992731]
[1756513678281,0.00213861,108390.0,108380.0,2.19218251]
[1756513678478,0.00213861,108390.0,108380.0,2.27518003]
[1756513679277,0.00213861,108390.0,108380.0,2.02518003]
[1756513680284,0.00213861,108390.0,108380.0,1.94218251]
[1756513682883,0.00213861,108390.0,108380.0,2.78954251]
[1756513684080,0.00213861,108390.0,108380.0,0.8761452]
[1756513684283,0.00213861,108390.0,108380.0,2.78954251]
[1756513686081,0.00213861,108390.0,108380.0,1.84992731]
[1756513686384,0.00213861,108390.0,108380.0,2.69728731]
[1756513687386,0.00213861,108390.0,108380.0,1.84992731]
[1756513687585,0.00213861,108390.0,108380.0,2.69724731]
[1756513689384,0.00013861,108390.0,108380.0,2.69824731]
[1756513689586,0.00013861,108390.0,108380.0,2.69924731]
[1756513690986,0.00013861,108390.0,108380.0,1.85192731]
[1756513691288,0.00013861,108390.0,108380.0,2.69924731]
[1756513691892,0.00013861,108390.0,108380.0,1.85192731]
[1756513692082,0.00013861,108390.0,108380.0,2.69924731]
[1756513692388,0.00013861,108390.0,108380.0,2.78224483]
[1756513696485,0.00013861,108390.0,108380.0,1.93492483]
[1756513696792,0.00013861,108390.0,108380.0,2.78220483]
[1756513700789,0.00013861,108390.0,108380.0,2.69920731]
[1756513700991,0.00013861,108390.0,108380.0,2.78219705]
[1756513708406,0.00013861,108390.0,108380.0,2.69920731]
[1756513709197,0.16541,108410.0,108400.0,0.06311]
[1756513709391,0.16541,108410.0,108400.0,2.33710731]
[1756513709796,0.16541,108410.0,108400.0,1.98176154]
[1756513710600,0.16541,108410.0,108400.0,2.34256154]
[1756513711198,0.16741,108410.0,108400.0,2.34256154]
[1756513714312,0.16741,108410.0,108400.0,2.34252154]
[1756513714498,0.16741,108410.0,108400.0,1.49540154]
[1756513714698,0.16741,108410.0,108400.0,2.34252154]
[1756513721105,0.16541,108410.0,108400.0,2.34252154]
[1756513721307,0.16641,108410.0,108400.0,2.34252154]
[1756513721702,0.12667,108410.0,108400.0,2.34252154]
[1756513726406,0.12667,108410.0,108400.0,2.34240154]
[1756513726610,0.12667,108410.0,108400.0,2.34236154]
[1756513728819,0.12667,108410.0,108400.0,2.34232154]
[1756513729515,0.16271,108410.0,108400.0,2.34232154]
[1756513730125,0.12667,108410.0,108400.0,2.34232154]
[1756513730822,0.12667,108410.0,108400.0,1.98152154]
[1756513736429,0.12667,108410.0,108400.0,1.13460154]
[1756513736728,0.12667,108410.0,108400.0,1.98144154]
[1756513738426,0.101,108410.0,108400.0,1.98144154]
[1756513740127,0.001,108410.0,108400.0,2.41985369]
[1756513740328,0.12003453,108420.0,108400.0,2.41985369]
[1756513740329,0.03604,108430.0,108410.0,0.03786]
[1756513740530,0.19431725,108430.0,108420.0,1.10935154]
[1756513740833,0.57429929,108430.0,108420.0,1.10935154]
[1756513741422,0.19431725,108430.0,108420.0,1.10935154]
[1756513741826,0.27239583,108430.0,108420.0,1.10935154]
[1756513743018,0.6277416,108430.0,108420.0,1.10935154]
[1756513747231,0.8777416,108430.0,108420.0,0.75400577]
[1756513747432,1.2385416,108430.0,108420.0,0.37864577]
[1756513747834,1.2385416,108430.0,108420.0,0.39253577]
[1756513752728,0.8777416,108430.0,108420.0,0.39253577]
[1756513754233,0.68042435,108430.0,108420.0,0.39253577]
[1756513754434,0.70563953,108430.0,108420.0,0.39253577]
[1756513754732,0.80563953,108430.0,108420.0,0.39253577]
[1756513755934,0.83309026,108430.0,108420.0,0.39253577]
[1756513756335,0.87106026,108430.0,108420.0,0.39253577]
[1756513760537,0.51571449,108430.0,108420.0,0.41303781]
[1756513760737,1.36199449,108430.0,108420.0,1.12918358]
[1756513760936,1.71734026,108430.0,108420.0,1.12918358]
[1756513761137,1.36199449,108430.0,108420.0,1.12918358]
[1756513761342,1.71734026,108430.0,108420.0,1.12918358]
[1756513761541,1.71734026,108430.0,108420.0,0.41849204]
[1756513761744,1.71734026,108430.0,108420.0,1.12918358]
[1756513762844,1.71734026,108430.0,108420.0,0.41303781]
[1756513764344,1.71734026,108430.0,108420.0,0.05769204]
[1756513764546,1.36199449,108430.0,108420.0,0.41303781]
[1756513764745,1.71734026,108430.0,108420.0,0.41303781]
[1756513769544,1.46734026,108430.0,108410.0,0.34717861]
[1756513769749,0.0636,108410.0,108400.0,0.47033341]
[1756513769948,1.36506577,108410.0,108400.0,0.37963577]
[1756513770844,1.36506577,108410.0,108390.0,0.73301883]
[1756513770845,1.68789577,108410.0,108390.0,1.0883646]
[1756513771050,1.33255,108410.0,108400.0,0.35534577]
[1756513771346,1.33255,108410.0,108400.0,0.35634577]
[1756513771649,1.36968,108410.0,108400.0,0.35634577]
[1756513771854,1.36968,108410.0,108400.0,0.35534577]
[1756513772350,1.72502577,108410.0,108400.0,0.35534577]
[1756513772550,1.72502577,108410.0,108400.0,0.35634577]
[1756513773343,1.72502577,108410.0,108400.0,0.001]
[1756513773548,1.72502577,108410.0,108400.0,0.35634577]
[1756513774456,1.72502577,108410.0,108400.0,0.001]
[1756513776056,2.43037154,108410.0,108400.0,0.001]
[1756513776446,1.97502577,108410.0,108400.0,0.001]
[1756513782261,1.61968,108410.0,108400.0,0.001]
[1756513782463,1.97502577,108410.0,108400.0,0.001]
[1756513789668,1.61968,108410.0,108400.0,0.001]
[1756513789856,0.77356,108410.0,108400.0,0.001]
[1756513790061,1.97494577,108410.0,108400.0,0.001]
[1756513790264,1.97494577,108410.0,108400.0,0.35634577]
[1756513790968,1.97494577,108410.0,108400.0,0.001]
[1756513792367,1.12890577,108410.0,108400.0,0.001]
[1756513792563,1.97490577,108410.0,108400.0,0.001]
[1756513793269,1.12890577,108410.0,108400.0,0.001]
[1756513793471,1.97486577,108410.0,108400.0,0.001]
[1756513797572,1.12890577,108410.0,108400.0,0.001]
[1756513797769,1.97478577,108410.0,108400.0,0.001]
[1756513797970,1.61398577,108410.0,108400.0,0.35634577]
[1756513798269,1.97478577,108410.0,108400.0,0.35634577]
[1756513799171,1.72478577,108410.0,108400.0,0.35634577]
[1756513800074,1.74946087,108410.0,108400.0,0.35634577]
[1756513802071,1.0332351,108410.0,108400.0,1.00895154]
[1756513802872,1.0332351,108410.0,108400.0,0.29826]
[1756513803074,1.0332351,108410.0,108400.0,1.00895154]
[1756513803473,0.1874351,108410.0,108400.0,1.39010835]
[1756513804070,1.0331951,108410.0,108400.0,1.39010835]
[1756513805074,0.1874351,108410.0,108400.0,1.39010835]
[1756513805272,1.0331951,108410.0,108400.0,1.39010835]
[1756513806382,1.00852,108410.0,108400.0,1.39010835]
[1756513810679,1.00852,108410.0,108400.0,0.67941681]
[1756513810883,1.00852,108410.0,108400.0,1.39010835]
[1756513811079,1.03307893,108410.0,108400.0,1.39010835]
[1756513812075,1.03303893,108410.0,108400.0,1.39010835]
[1756513812380,0.18743893,108410.0,108400.0,1.39010835]
[1756513812580,1.03303893,108410.0,108400.0,1.39010835]
[1756513815083,0.18743893,108410.0,108400.0,1.39010835]
[1756513815285,1.03295893,108410.0,108400.0,1.39010835]
[1756513820085,1.03295893,108410.0,108400.0,0.67941681]
[1756513820385,1.03295893,108410.0,108400.0,1.39010835]
[1756513821185,1.00828,108410.0,108400.0,1.39010835]
[1756513825580,1.00828,108410.0,108400.0,0.67941681]
[1756513825787,1.74912123,108410.0,108400.0,0.02135681]
[1756513825985,1.99912123,108410.0,108400.0,0.02135681]
[1756513826286,1.99912123,108410.0,108400.0,0.37670258]
[1756513826892,1.99912123,108410.0,108400.0,0.02135681]
[1756513831483,0.03742,108400.0,108380.0,0.75712851]
[1756513831693,1.26335577,108390.0,108380.0,0.78253851]
[1756513833690,1.26335577,108390.0,108380.0,0.78453851]
[1756513834193,1.26335577,108390.0,108380.0,0.43319274]
[1756513834389,1.26335577,108390.0,108380.0,0.42773851]
[1756513835498,1.26335577,108390.0,108380.0,0.40688577]
[1756513835996,1.26335577,108390.0,108380.0,0.05154]
[1756513836196,1.26335577,108390.0,108380.0,0.40688577]
[1756513836695,1.26335577,108390.0,108380.0,0.05154]
[1756513836996,1.26335577,108390.0,108380.0,0.40688577]
[1756513838394,0.90801,108390.0,108380.0,0.40688577]
[1756513838698,1.26335577,108390.0,108380.0,0.40688577]
[1756513839599,1.26335577,108390.0,108380.0,0.05154]
[1756513839794,0.90801,108390.0,108380.0,0.40688577]
[1756513839994,1.26335577,108390.0,108380.0,0.40688577]
[1756513841293,0.90801,108390.0,108380.0,0.40688577]
[1756513841497,0.90793,108390.0,108380.0,0.40688577]
[1756513841800,1.26327577,108390.0,108380.0,0.76223154]
[1756513842501,0.90793,108390.0,108380.0,0.76223154]
[1756513842701,1.26327577,108390.0,108380.0,0.76223154]
[1756513843202,1.26327577,108390.0,108380.0,0.05154]
[1756513843402,1.26327577,108390.0,108380.0,0.76223154]
[1756513843601,0.41811577,108390.0,108380.0,0.76223154]
[1756513843798,1.26323577,108390.0,108380.0,1.12303154]
[1756513846810,0.90789,108390.0,108380.0,1.12303154]
[1756513848109,0.06277,108390.0,108380.0,1.12303154]
[1756513848408,0.90785,108390.0,108380.0,1.12303154]
[1756513849808,0.35534577,108400.0,108380.0,1.12303154]
[1756513850108,0.38069577,108400.0,108390.0,0.41977577]
[1756513850408,1.22573577,108400.0,108390.0,0.41977577]
[1756513851411,1.61124906,108400.0,108390.0,0.41977577]
[1756513851910,1.64866906,108400.0,108390.0,0.41977577]
[1756513852208,1.64866906,108400.0,108390.0,0.42177577]
[1756513852910,1.64866906,108400.0,108390.0,0.42277577]
[1756513853204,1.29332329,108400.0,108390.0,0.42277577]
[1756513853511,1.64866906,108400.0,108390.0,0.42277577]
[1756513853711,1.64866906,108400.0,108390.0,0.06743]
[1756513853910,1.64866906,108400.0,108390.0,0.42277577]
[1756513857112,1.64866906,108400.0,108390.0,0.38375577]
[1756513858913,1.28786906,108400.0,108390.0,0.38375577]
[1756513859111,1.28786906,108400.0,108390.0,0.02841]
[1756513859112,1.64866906,108400.0,108390.0,0.02841]
[1756513859312,1.64866906,108400.0,108390.0,0.42277577]
[1756513859511,1.64850906,108400.0,108390.0,0.42277577]
[1756513860110,1.64850906,108400.0,108390.0,0.06743]
[1756513860307,1.29316329,108400.0,108390.0,0.42277577]
[1756513860507,1.64850906,108400.0,108390.0,0.06743]
[1756513860708,1.64850906,108400.0,108390.0,0.42277577]
[1756513861318,2.00385483,108400.0,108390.0,0.35834577]
[1756513861507,2.00385483,108400.0,108390.0,0.003]
[1756513861815,2.00385483,108400.0,108390.0,0.35834577]
[1756513863115,2.00385483,108400.0,108390.0,0.38241577]
[1756513863319,2.00385483,108400.0,108390.0,0.02707]
[1756513863510,2.00385483,108400.0,108390.0,0.38241577]
[1756513863712,2.00385483,108400.0,108390.0,0.003]
[1756513864308,0.06162,108390.0,108380.0,0.37941577]
[1756513864513,0.80247906,108390.0,108380.0,0.35534577]
[1756513864707,0.44713329,108390.0,108380.0,0.35534577]
[1756513864926,0.80247906,108390.0,108380.0,0.35534577]
[1756513865615,0.80247906,108390.0,108380.0,0.37941577]
[1756513865816,0.80247906,108390.0,108380.0,0.38041577]
[1756513867316,0.80247906,108390.0,108380.0,0.38341577]
[1756513868616,0.80247906,108390.0,108380.0,0.004]
[1756513869121,1.15782483,108390.0,108380.0,0.004]
[1756513869322,0.76608906,108390.0,108370.0,0.37619419]
[1756513869516,1.62248577,108380.0,108370.0,0.43824419]
[1756513869718,1.64719906,108380.0,108370.0,0.43824419]
[1756513870221,2.00254483,108380.0,108370.0,0.40026419]
[1756513870422,1.64719906,108380.0,108370.0,0.40426419]
[1756513870624,1.64719906,108380.0,108370.0,0.40626419]
[1756513871220,1.62248577,108380.0,108370.0,0.40626419]
[1756513871521,1.97783154,108380.0,108370.0,0.38541577]
[1756513872218,1.26714,108380.0,108370.0,0.006]
[1756513872413,1.29182495,108380.0,108370.0,0.38541577]
[1756513872717,1.29182495,108380.0,108370.0,0.38341577]
[1756513872918,1.29182495,108380.0,108370.0,0.03007]
[1756513873114,1.29182495,108380.0,108370.0,0.02607]
[1756513873321,1.29182495,108380.0,108370.0,0.38141577]
[1756513873322,2.00351649,108380.0,108370.0,0.38141577]
[1756513873515,1.97879154,108380.0,108370.0,0.38141577]
[1756513873819,1.97879154,108380.0,108370.0,0.37941577]
[1756513875128,1.2681,108380.0,108370.0,0.37941577]
[1756513875324,1.97879154,108380.0,108370.0,0.37941577]
[1756513878526,1.97879154,108380.0,108370.0,0.02407]
[1756513878727,0.42342,108380.0,108370.0,0.02407]
[1756513878930,1.98163154,108380.0,108370.0,0.02407]
[1756513879420,1.98163154,108380.0,108370.0,0.37941577]
[1756513880628,1.97363154,108380.0,108370.0,0.37941577]
[1756513880831,0.06162,108360.0,108350.0,0.40535716]
[1756513881028,1.26444577,108360.0,108350.0,0.38487]
[1756513881225,1.62524577,108360.0,108350.0,0.37941577]
[1756513882830,1.62524577,108360.0,108350.0,0.4380695]
[1756513883132,1.11629102,108360.0,108350.0,0.4410695]
[1756513883329,1.47163679,108360.0,108350.0,0.4410695]